[Event "1st Sergiy Shystarev Memorial 2020"]
[Site "Kyiv"]
[Date "2020.08.28"]
[Round "5.3"]
[White "Solodovnichenko, Yuri"]
[Black "Sergeev, Vladimir"]
[Result "1-0"]
[ECO "B05"]
[WhiteElo "2553"]
[BlackElo "2423"]
[Annotator "ChessBase"]
[PlyCount "76"]
[EventDate "2020.08.25"]
[EventCountry "UKR"]
[SourceTitle "playchess.com"]
[Source "ChessBase"]
[SourceQuality "1"]
[TimeControl "5400+30"]

1. e4 {[%emt 0:01:24]} Nf6 {[%emt 0:00:00]} 2. e5 {[%emt 0:00:06]} Nd5 {[%emt 0:00:00]} 3. d4 {[%emt 0:00:04]} c6 {[%emt 0:00:00]} 4. Nf3 {[%emt 0:01:41]} d6 {[%emt 0:00:00]} 5. Be2 {[%emt 0:01:40]} Bg4 {[%emt 0:00:13]} 6. c4 {[%emt 0:00:27]} Nb6 {[%emt 0:00:42]} 7. Nbd2 {[%emt 0:00:43]} dxe5 {[%emt 0:00:13]} 8. Nxe5 {[%emt 0:00:08]} Bxe2 9. Qxe2 {[%emt 0:00:07]} e6 {[%emt 0:00:40]} 10. Qf3 {[%emt 0:06:16]} Qf6 {[%emt 0:10:56]} 11. Qb3 {[%emt 0:00:58]} Qe7 {[%emt 0:02:10]} 12. c5 {[%emt 0:03:15]} Nd5 {[%emt 0:04:05]} 13. Ne4 {[%emt 0:02:58]} Qc7 {[%emt 0:00:31]} 14. Qf3 {[%emt 0:07:08]} f5 {[%emt 1:01:45]} 15. Ng5 {[%emt 0:04:04]} Bxc5 {[%emt 0:00:18]} 16. Nxe6 {[%emt 0:04:21]} Bb4+ {[%emt 0:01:19]} 17. Kf1 {[%emt 0:00:25]} Qe7 {[%emt 0:00:33]} 18. Qh5+ {[%emt 0:07:01]} g6 {[%emt 0:00:08]} 19. Nxg6 {[%emt 0:00:17]} hxg6 {[%emt 0:04:54]} 20. Qxh8+ {[%emt 0:00:06]} Kd7 {[%emt 0:00:01]} 21. Bg5 {[%emt 0:00:16]} Qe8 {[%emt 0:02:59]} 22. Qxe8+ Kxe8 {[%emt 0:00:04]} 23. a3 {[%emt 0:02:44]} Bd6 {[%emt 0:01:04]} 24. Re1 {[%emt 0:01:19]} Kd7 {[%emt 0:00:16]} 25. h4 {[%emt 0:00:56]} Na6 {[%emt 0:01:49]} 26. h5 {[%emt 0:00:08]} Rh8 {[%emt 0:00:18]} 27. h6 {[%emt 0:00:23]} Nac7 {[%emt 0:00:03]} 28. Nd8 {[%emt 0:00:33]} Rh7 {[%emt 0:02:00]} 29. Nxb7 {[%emt 0:03:57]} Ne6 {[%emt 0:00:04]} 30. Nxd6 {[%emt 0:00:36]} Kxd6 {[%emt 0:00:14]} 31. Bd2 {[%emt 0:00:21]} f4 {[%emt 0:00:55]} 32. Bc3 {[%emt 0:02:00]} Ng7 {[%emt 0:01:27]} 33. hxg7 {[%emt 0:02:12]} Rxh1+ {[%emt 0:00:02]} 34. Ke2 {[%emt 0:00:06]} Rxe1+ {[%emt 0:00:10]} 35. Kxe1 {[%emt 0:00:09]} Nf6 {[%emt 0:00:07]} 36. d5 {[%emt 0:00:04]} Ng8 {[%emt 0:00:04]} 37. dxc6 {[%emt 0:00:04]} Kxc6 {[%emt 0:00:04]} 38. Ke2 {[%emt 0:00:04]} Kd5 1-0

[Event "1st Sergiy Shystarev Memorial 2020"]
[Site "Kyiv"]
[Date "2020.08.28"]
[Round "5.5"]
[White "Matviishen, Viktor"]
[Black "Kruglyakov, Pavlo"]
[Result "1-0"]
[ECO "D83"]
[WhiteElo "2505"]
[BlackElo "2357"]
[Annotator "ChessBase"]
[PlyCount "81"]
[EventDate "2020.08.25"]
[EventCountry "UKR"]
[SourceTitle "playchess.com"]
[Source "ChessBase"]
[SourceQuality "1"]
[TimeControl "5400+30"]

1. d4 {[%emt 0:00:00]} Nf6 {[%emt 0:00:00]} 2. c4 {[%emt 0:00:00]} g6 {[%emt 0:00:00]} 3. Nc3 {[%emt 0:00:00]} d5 {[%emt 0:00:00]} 4. Bf4 {[%emt 0:00:48]} Bg7 {[%emt 0:00:00]} 5. e3 {[%emt 0:00:09]} O-O {[%emt 0:02:07]} 6. Qb3 {[%emt 0:00:09]} c6 {[%emt 0:15:39]} 7. Nf3 {[%emt 0:00:11]} Qb6 {[%emt 0:05:31]} 8. h3 {[%emt 0:06:07]} Na6 {[%emt 0:14:06]} 9. c5 {[%emt 0:00:11]} Qa5 {[%emt 0:00:47]} 10. a3 {[%emt 0:08:20]} Nd7 {[%emt 0:09:41]} 11. Qa4 {[%emt 0:08:10]} Qxa4 {[%emt 0:04:18]} 12. Nxa4 {[%emt 0:00:39]} f6 {[%emt 0:07:11]} 13. Bh2 {[%emt 0:00:31]} e5 {[%emt 0:00:39]} 14. b4 {[%emt 0:01:49]} Nc7 {[%emt 0:05:17]} 15. Nc3 {[%emt 0:00:07]} a6 {[%emt 0:00:52]} 16. a4 {[%emt 0:07:42]} Ne6 {[%emt 0:00:48]} 17. O-O-O {[%emt 0:13:58]} e4 {[%emt 0:14:08]} 18. Nd2 {[%emt 0:03:52]} f5 {[%emt 0:00:01]} 19. Bd6 {[%emt 0:00:22]} Rf7 {[%emt 0:04:03]} 20. Nb3 {[%emt 0:00:18]} f4 {[%emt 0:00:28]} 21. Be2 {[%emt 0:01:20]} h5 {[%emt 0:02:14]} 22. g3 {[%emt 0:05:51]} f3 {[%emt 0:04:52]} 23. Bf1 {[%emt 0:00:01]} g5 {[%emt 0:00:11]} 24. Kb2 {[%emt 0:08:47]} Bf6 {[%emt 0:01:22]} 25. Nxe4 {[%emt 0:06:25]} dxe4 {[%emt 0:00:35]} 26. Bc4 {[%emt 0:00:01]} Ndf8 {[%emt 0:02:17]} 27. Nd2 {[%emt 0:00:12]} Bd7 {[%emt 0:02:47]} 28. Nxe4 {[%emt 0:00:06]} Re8 {[%emt 0:01:27]} 29. h4 {[%emt 0:13:16]} g4 {[%emt 0:00:57]} 30. Nxf6+ {[%emt 0:00:09]} Rxf6 {[%emt 0:00:01]} 31. d5 {[%emt 0:00:06]} cxd5 {[%emt 0:00:11]} 32. Rxd5 {[%emt 0:00:01]} Bxa4 {[%emt 0:02:06]} 33. Rxh5 {[%emt 0:00:14]} Kf7 {[%emt 0:00:41]} 34. Rg5 {[%emt 0:07:50]} Bb5 {[%emt 0:00:01]} 35. Ba2 {[%emt 0:04:53]} Bd3 {[%emt 0:01:08]} 36. Rxg4 {[%emt 0:00:22]} Bf5 {[%emt 0:00:43]} 37. Rg5 {[%emt 0:00:53]} Nh7 {[%emt 0:00:19]} 38. g4 {[%emt 0:00:01]} Bd3 {[%emt 0:00:57]} 39. Rd5 {[%emt 0:00:20]} Bg6 {[%emt 0:00:26]} 40. h5 {[%emt 0:00:29]} Be4 {[%emt 0:00:34]} 41. Re5 {[%emt 0:00:01]} 1-0

[Event "1st Sergiy Shystarev Memorial 2020"]
[Site "Kyiv"]
[Date "2020.08.29"]
[Round "6.3"]
[White "Budnikov, Oleg"]
[Black "Malakhatko, Vadim"]
[Result "1/2-1/2"]
[ECO "C01"]
[WhiteElo "2397"]
[BlackElo "2488"]
[Annotator "ChessBase"]
[PlyCount "30"]
[EventDate "2020.08.23"]
[EventCountry "UKR"]
[SourceTitle "playchess.com"]
[Source "ChessBase"]
[SourceQuality "1"]
[TimeControl "5400+30"]

1. e4 {[%emt 0:09:37]} e6 {[%emt 0:00:00]} 2. d4 {[%emt 0:00:07]} d5 {[%emt 0:00:00]} 3. exd5 {[%emt 0:00:06]} exd5 {[%emt 0:00:00]} 4. Nf3 {[%emt 0:00:07]} Nf6 {[%emt 0:00:00]} 5. Bd3 {[%emt 0:00:08]} Bg4 {[%emt 0:00:10]} 6. h3 {[%emt 0:00:15]} Bh5 {[%emt 0:00:07]} 7. Qe2+ {[%emt 0:00:17]} Qe7 {[%emt 0:04:20]} 8. Qxe7+ {[%emt 0:00:15]} Bxe7 {[%emt 0:00:06]} 9. Ne5 {[%emt 0:00:12]} Bg6 {[%emt 0:00:17]} 10. Nxg6 {[%emt 0:00:24]} hxg6 {[%emt 0:00:10]} 11. Bf4 {[%emt 0:00:06]} Kd7 {[%emt 0:01:30]} 12. Nd2 {[%emt 0:00:13]} Bd6 {[%emt 0:00:05]} 13. Bxd6 {[%emt 0:00:12]} Kxd6 {[%emt 0:00:06]} 14. O-O-O {[%emt 0:00:16]} Nbd7 {[%emt 0:00:11]} 15. Rde1 {[%emt 0:00:16]} Rae8 {[%emt 0:00:33]} 1/2-1/2

[Event "1st Sergiy Shystarev Memorial 2020"]
[Site "Kyiv"]
[Date "2020.08.29"]
[Round "6.4"]
[White "Shevchenko, Danylo"]
[Black "Kislinsky, Alexey"]
[Result "*"]
[ECO "B21"]
[WhiteElo "2185"]
[BlackElo "2452"]
[Annotator "ChessBase"]
[PlyCount "36"]
[EventDate "2020.08.23"]
[EventCountry "UKR"]
[SourceTitle "playchess.com"]
[Source "ChessBase"]
[SourceQuality "1"]
[TimeControl "5400+30"]

1. e4 c5 {[%emt 0:03:29]} 2. d4 {[%emt 0:02:33]} cxd4 {[%emt 0:00:07]} 3. c3 {[%emt 0:00:01]} g6 {[%emt 0:00:21]} 4. cxd4 {[%emt 0:00:19]} d5 5. exd5 {[%emt 0:00:19]} Nf6 {[%emt 0:00:16]} 6. Bb5+ {[%emt 0:00:15]} Nbd7 {[%emt 0:00:30]} 7. d6 exd6 {[%emt 0:04:17]} 8. Bg5 {[%emt 0:00:38]} Bg7 {[%emt 0:00:58]} 9. Qe2+ {[%emt 0:00:08]} Kf8 {[%emt 0:00:18]} 10. Nf3 {[%emt 0:11:20]} h6 {[%emt 0:01:01]} 11. Bf4 {[%emt 0:01:06]} Nb6 {[%emt 0:00:19]} 12. O-O {[%emt 0:08:22]} a6 {[%emt 0:01:05]} 13. Bd3 {[%emt 0:00:03]} Nbd5 {[%emt 0:00:29]} 14. Bg3 {[%emt 0:01:22]} Kg8 {[%emt 0:00:25]} 15. Nbd2 {[%emt 0:17:47]} Kh7 {[%emt 0:02:12]} 16. Nc4 {[%emt 0:03:47]} Re8 {[%emt 0:04:49]} 17. Qd2 {[%emt 0:00:11]} Nh5 {[%emt 0:00:42]} 18. a4 {[%emt 0:07:59]} Bg4 {[%emt 0:02:58]} *

[Event "1st Sergiy Shystarev Memorial 2020"]
[Site "Kyiv"]
[Date "2020.08.29"]
[Round "7.1"]
[White "Kislinsky, Alexey"]
[Black "Budnikov, Oleg"]
[Result "1-0"]
[ECO "B22"]
[WhiteElo "2452"]
[BlackElo "2397"]
[Annotator "ChessBase"]
[PlyCount "97"]
[EventDate "2020.08.25"]
[EventCountry "UKR"]
[SourceTitle "playchess.com"]
[Source "ChessBase"]
[SourceQuality "1"]
[TimeControl "5400+30"]

1. e4 {[%emt 0:00:26]} c5 {[%emt 0:22:12]} 2. c3 {[%emt 0:00:07]} Nf6 {[%emt 0:00:26]} 3. e5 {[%emt 0:00:07]} Nd5 {[%emt 0:00:04]} 4. Bc4 {[%emt 0:00:17]} Nb6 {[%emt 0:00:10]} 5. Bb3 {[%emt 0:00:04]} c4 {[%emt 0:00:09]} 6. Bc2 {[%emt 0:00:06]} Nc6 {[%emt 0:00:05]} 7. Nf3 {[%emt 0:00:28]} d6 {[%emt 0:00:11]} 8. exd6 {[%emt 0:00:07]} Qxd6 {[%emt 0:00:05]} 9. O-O {[%emt 0:01:12]} Bg4 {[%emt 0:03:18]} 10. Re1 {[%emt 0:00:20]} O-O-O {[%emt 0:00:35]} 11. Na3 {[%emt 0:01:31]} Qf6 {[%emt 0:02:07]} 12. b3 {[%emt 0:03:45]} Nd5 {[%emt 0:00:16]} 13. Bb2 {[%emt 0:04:22]} cxb3 {[%emt 0:13:27]} 14. axb3 {[%emt 0:04:00]} Bxf3 {[%emt 0:00:30]} 15. Qxf3 {[%emt 0:00:30]} Qxf3 16. gxf3 {[%emt 0:00:00]} e5 {[%emt 0:07:34]} 17. b4 {[%emt 0:06:16]} f6 {[%emt 0:01:13]} 18. Nc4 {[%emt 0:00:55]} a6 {[%emt 0:00:59]} 19. Be4 {[%emt 0:02:39]} Kc7 {[%emt 0:00:17]} 20. Reb1 {[%emt 0:08:08]} g6 {[%emt 0:02:12]} 21. Bc1 {[%emt 0:04:10]} f5 {[%emt 0:01:31]} 22. Bxd5 {[%emt 0:02:13]} Rxd5 {[%emt 0:00:08]} 23. Ne3 {[%emt 0:00:04]} Rd3 {[%emt 0:06:26]} 24. b5 {[%emt 0:00:59]} axb5 {[%emt 0:00:35]} 25. Rxb5 {[%emt 0:00:05]} Bd6 {[%emt 0:15:15]} 26. Nd5+ {[%emt 0:02:33]} Kb8 {[%emt 0:01:17]} 27. Rab1 {[%emt 0:00:35]} Nd8 {[%emt 0:00:08]} 28. c4 {[%emt 0:04:43]} Re8 {[%emt 0:01:46]} 29. Bb2 {[%emt 0:01:29]} Rf8 {[%emt 0:06:11]} 30. Rb6 {[%emt 0:07:26]} Bc7 {[%emt 0:00:33]} 31. Nxc7 {[%emt 0:00:18]} Kxc7 {[%emt 0:00:02]} 32. Bxe5+ {[%emt 0:00:08]} Kc8 {[%emt 0:01:01]} 33. R1b2 {[%emt 0:11:23]} f4 {[%emt 0:01:34]} 34. Kf1 {[%emt 0:10:15]} Rxf3 {[%emt 0:02:42]} 35. Ra2 {[%emt 0:00:13]} Kd7 {[%emt 0:02:44]} 36. Ra8 {[%emt 0:01:26]} Re8 {[%emt 0:01:24]} 37. d4 {[%emt 0:01:02]} Rc3 {[%emt 0:01:42]} 38. c5 {[%emt 0:00:50]} f3 {[%emt 0:00:20]} 39. Ke1 {[%emt 0:00:25]} Rc2 {[%emt 0:01:16]} 40. Rd6+ {[%emt 0:00:40]} Ke7 {[%emt 0:00:22]} 41. Raxd8 {[%emt 0:00:21]} Re2+ {[%emt 0:00:16]} 42. Kf1 {[%emt 0:00:58]} Rxd8 {[%emt 0:00:23]} 43. Bf6+ {[%emt 0:00:05]} Ke8 {[%emt 0:00:26]} 44. Rxd8+ {[%emt 0:00:30]} Kf7 {[%emt 0:00:04]} 45. Bh4 {[%emt 0:00:07]} Rb2 {[%emt 0:00:27]} 46. Ke1 {[%emt 0:00:06]} Ke6 {[%emt 0:00:12]} 47. Bg3 {[%emt 0:00:48]} g5 {[%emt 0:00:29]} 48. d5+ {[%emt 0:00:17]} Kf5 {[%emt 0:00:07]} 49. Re8 {[%emt 0:00:17]} 1-0

[Event "1st Sergiy Shystarev Memorial 2020"]
[Site "Kyiv"]
[Date "2020.08.29"]
[Round "7.2"]
[White "Solodovnichenko, Yuri"]
[Black "Roshka, Yevgeniy"]
[Result "0-1"]
[ECO "C11"]
[WhiteElo "2553"]
[BlackElo "2455"]
[Annotator "ChessBase"]
[PlyCount "94"]
[EventDate "2020.08.25"]
[EventCountry "UKR"]
[SourceTitle "playchess.com"]
[Source "ChessBase"]
[SourceQuality "1"]
[TimeControl "5400+30"]

1. e4 {[%emt 0:03:43]} e6 {[%emt 0:05:12]} 2. d4 {[%emt 0:00:06]} d5 {[%emt 0:00:01]} 3. Nc3 {[%emt 0:00:05]} Nf6 {[%emt 0:00:03]} 4. e5 {[%emt 0:01:06]} Nfd7 {[%emt 0:00:10]} 5. f4 {[%emt 0:00:16]} c5 {[%emt 0:04:05]} 6. Nf3 {[%emt 0:00:06]} Nc6 {[%emt 0:00:01]} 7. Be3 {[%emt 0:00:06]} Be7 {[%emt 0:00:24]} 8. Qd2 {[%emt 0:00:29]} a6 {[%emt 0:00:01]} 9. Bd3 {[%emt 0:07:39]} b5 {[%emt 0:01:27]} 10. O-O {[%emt 0:01:07]} b4 {[%emt 0:03:15]} 11. Nd1 {[%emt 0:00:18]} a5 {[%emt 0:00:42]} 12. c3 {[%emt 0:04:12]} a4 {[%emt 0:01:47]} 13. f5 {[%emt 0:06:14]} exf5 {[%emt 0:10:38]} 14. Bxf5 {[%emt 0:01:18]} bxc3 {[%emt 0:01:29]} 15. Nxc3 {[%emt 0:04:44]} cxd4 16. Nxd4 {[%emt 0:01:02]} Ncxe5 {[%emt 0:07:18]} 17. Nxd5 {[%emt 0:01:24]} O-O {[%emt 0:01:41]} 18. Qc2 {[%emt 0:07:04]} Ba6 {[%emt 0:08:12]} 19. Nxe7+ {[%emt 0:11:49]} Qxe7 {[%emt 0:00:02]} 20. Bxh7+ {[%emt 0:05:13]} Kh8 {[%emt 0:00:09]} 21. Rf4 {[%emt 0:22:32]} g6 {[%emt 0:03:13]} 22. Nf5 {[%emt 0:01:23]} Bd3 {[%emt 0:13:33]} 23. Qf2 {[%emt 0:00:17]} Bxf5 {[%emt 0:00:01]} 24. Rh4 {[%emt 0:00:09]} Ng4 {[%emt 0:00:23]} 25. Bd4+ {[%emt 0:01:30]} Nde5 {[%emt 0:00:28]} 26. Qg3 {[%emt 0:09:59]} Kg7 {[%emt 0:00:39]} 27. Re1 {[%emt 0:01:24]} f6 {[%emt 0:00:48]} 28. Bxg6 {[%emt 0:03:51]} Kxg6 {[%emt 0:01:29]} 29. h3 {[%emt 0:00:28]} Qd6 {[%emt 0:04:40]} 30. Bxe5 {[%emt 0:00:22]} fxe5 {[%emt 0:00:01]} 31. hxg4 {[%emt 0:00:41]} Qd4+ {[%emt 0:03:57]} 32. Kh1 {[%emt 0:02:32]} Be6 {[%emt 0:05:34]} 33. Qh3 {[%emt 0:02:00]} Qd2 {[%emt 0:02:02]} 34. Re3 {[%emt 0:00:05]} Rh8 {[%emt 0:01:58]} 35. Rh5 {[%emt 0:00:09]} Qd1+ {[%emt 0:00:21]} 36. Kh2 {[%emt 0:00:09]} Bxg4 {[%emt 0:00:23]} 37. Rxh8 {[%emt 0:00:49]} Bxh3 {[%emt 0:00:09]} 38. Rxa8 {[%emt 0:00:17]} Be6 {[%emt 0:03:02]} 39. Ra5 {[%emt 0:02:04]} Qd6 {[%emt 0:01:33]} 40. Raxe5 {[%emt 0:00:41]} Kf6 {[%emt 0:00:29]} 41. Kg1 {[%emt 0:00:12]} Qxe5 {[%emt 0:03:52]} 42. Rxe5 {[%emt 0:00:01]} Kxe5 {[%emt 0:00:01]} 43. Kf2 {[%emt 0:00:05]} Bxa2 {[%emt 0:00:35]} 44. Ke3 {[%emt 0:00:08]} Bb1 {[%emt 0:00:06]} 45. g4 {[%emt 0:02:00]} Be4 {[%emt 0:00:22]} 46. Kd2 {[%emt 0:00:09]} Kd4 {[%emt 0:00:01]} 47. Kc1 {[%emt 0:00:10]} Ke5 0-1

[Event "1st Sergiy Shystarev Memorial 2020"]
[Site "Kyiv"]
[Date "2020.08.29"]
[Round "7.3"]
[White "Malakhatko, Vadim"]
[Black "Sivuk, Vitaly"]
[Result "0-1"]
[ECO "D02"]
[WhiteElo "2488"]
[BlackElo "2545"]
[Annotator "ChessBase"]
[PlyCount "56"]
[EventDate "2020.08.25"]
[EventCountry "UKR"]
[SourceTitle "playchess.com"]
[Source "ChessBase"]
[SourceQuality "1"]
[TimeControl "5400+30"]

1. Nf3 {[%emt 0:00:00]} d5 {[%emt 0:00:36]} 2. d4 {[%emt 0:03:20]} Nf6 {[%emt 0:00:20]} 3. c4 {[%emt 0:00:06]} e6 {[%emt 0:00:20]} 4. e3 {[%emt 0:00:23]} a6 {[%emt 0:00:20]} 5. Nbd2 {[%emt 0:00:38]} c5 {[%emt 0:09:57]} 6. cxd5 {[%emt 0:03:37]} exd5 {[%emt 0:00:46]} 7. dxc5 {[%emt 0:00:07]} Bxc5 {[%emt 0:00:09]} 8. Nb3 {[%emt 0:00:04]} Bb6 {[%emt 0:03:36]} 9. Be2 {[%emt 0:07:01]} O-O {[%emt 0:00:48]} 10. O-O {[%emt 0:00:06]} Nc6 {[%emt 0:00:07]} 11. Nbd4 {[%emt 0:00:12]} Ne4 {[%emt 0:05:19]} 12. Nxc6 bxc6 {[%emt 0:00:12]} 13. Nd2 {[%emt 0:08:25]} f5 {[%emt 0:02:49]} 14. Nf3 {[%emt 0:02:45]} Qd6 {[%emt 0:06:57]} 15. Qc2 {[%emt 0:01:11]} Bb7 {[%emt 0:03:22]} 16. b3 {[%emt 0:02:05]} Rae8 {[%emt 0:02:00]} 17. a4 {[%emt 0:00:48]} c5 {[%emt 0:04:15]} 18. g3 {[%emt 0:03:20]} Kh8 {[%emt 0:09:58]} 19. Bb2 {[%emt 0:01:39]} d4 {[%emt 0:03:05]} 20. exd4 {[%emt 0:00:16]} cxd4 {[%emt 0:09:09]} 21. Rad1 {[%emt 0:03:36]} Nc3 {[%emt 0:05:10]} 22. Bxc3 {[%emt 0:10:08]} Qc6 {[%emt 0:00:14]} 23. Rd3 {[%emt 0:10:40]} f4 {[%emt 0:04:44]} 24. Bd1 {[%emt 0:09:58]} fxg3 {[%emt 0:05:05]} 25. hxg3 {[%emt 0:05:58]} dxc3 {[%emt 0:00:16]} 26. Rxc3 {[%emt 0:00:12]} Qd6 {[%emt 0:08:52]} 27. Nd2 {[%emt 0:10:54]} Be3 {[%emt 0:04:36]} 28. Rxe3 {[%emt 0:03:24]} Rxe3 {[%emt 0:00:06]} 0-1

[Event "1st Sergiy Shystarev Memorial 2020"]
[Site "Kyiv"]
[Date "2020.08.29"]
[Round "7.4"]
[White "Matviishen, Viktor"]
[Black "Vysochin, Spartak"]
[Result "1-0"]
[ECO "D18"]
[WhiteElo "2505"]
[BlackElo "2501"]
[Annotator "ChessBase"]
[PlyCount "139"]
[EventDate "2020.08.25"]
[EventCountry "UKR"]
[SourceTitle "playchess.com"]
[Source "ChessBase"]
[SourceQuality "1"]
[TimeControl "5400+30"]

1. d4 {[%emt 0:00:00]} d5 {[%emt 0:00:00]} 2. c4 {[%emt 0:00:00]} c6 {[%emt 0:00:00]} 3. Nf3 {[%emt 0:00:00]} Nf6 {[%emt 0:00:08]} 4. Nc3 {[%emt 0:00:00]} dxc4 {[%emt 0:00:29]} 5. a4 {[%emt 0:00:00]} Bf5 6. e3 e6 {[%emt 0:00:27]} 7. Bxc4 {[%emt 0:00:15]} Bb4 {[%emt 0:00:08]} 8. O-O {[%emt 0:00:06]} Nbd7 {[%emt 0:00:00]} 9. Qe2 {[%emt 0:00:14]} O-O 10. Rd1 {[%emt 0:00:18]} Ne4 {[%emt 0:04:17]} 11. Na2 {[%emt 0:05:43]} Bd6 {[%emt 0:05:41]} 12. Bd3 {[%emt 0:00:14]} Bg6 {[%emt 0:01:25]} 13. Nc3 {[%emt 0:03:02]} Nxc3 14. bxc3 {[%emt 0:00:05]} Bh5 {[%emt 0:15:41]} 15. h3 {[%emt 0:18:34]} Qe7 16. Rb1 {[%emt 0:14:50]} b6 {[%emt 0:12:05]} 17. e4 {[%emt 0:04:49]} f6 {[%emt 0:02:42]} 18. g4 {[%emt 0:02:00]} Bg6 {[%emt 0:01:19]} 19. Nh4 {[%emt 0:01:05]} Bf7 {[%emt 0:11:46]} 20. f4 {[%emt 0:00:51]} g6 {[%emt 0:00:52]} 21. Nf3 {[%emt 0:02:47]} Bc7 {[%emt 0:04:56]} 22. e5 {[%emt 0:03:13]} c5 {[%emt 0:00:31]} 23. Be3 {[%emt 0:04:51]} Rac8 {[%emt 0:01:13]} 24. Ba6 {[%emt 0:05:20]} Rb8 {[%emt 0:07:42]} 25. Bc4 {[%emt 0:07:27]} Kh8 {[%emt 0:03:49]} 26. g5 {[%emt 0:05:35]} fxg5 {[%emt 0:02:15]} 27. Nxg5 cxd4 {[%emt 0:01:27]} 28. cxd4 {[%emt 0:01:40]} b5 {[%emt 0:01:08]} 29. axb5 {[%emt 0:02:39]} Nb6 {[%emt 0:00:14]} 30. Bb3 {[%emt 0:01:08]} Nd5 {[%emt 0:00:42]} 31. Bxd5 {[%emt 0:00:06]} exd5 {[%emt 0:00:04]} 32. Bd2 {[%emt 0:03:58]} Rfe8 {[%emt 0:02:26]} 33. Bb4 {[%emt 0:03:09]} Qd7 {[%emt 0:00:03]} 34. Bc5 {[%emt 0:00:31]} Bb6 {[%emt 0:03:04]} 35. Rbc1 {[%emt 0:03:12]} Be6 {[%emt 0:01:44]} 36. Nxe6 {[%emt 0:05:35]} Rxe6 {[%emt 0:00:39]} 37. Qg4 {[%emt 0:00:30]} Qf7 {[%emt 0:00:39]} 38. Bd6 {[%emt 0:00:45]} Rg8 {[%emt 0:00:40]} 39. Kh2 {[%emt 0:02:40]} h5 {[%emt 0:03:05]} 40. Qg5 {[%emt 0:00:25]} Kh7 {[%emt 0:00:47]} 41. Rf1 {[%emt 0:00:24]} Bd8 {[%emt 0:00:42]} 42. Qg2 {[%emt 0:00:01]} Qf5 {[%emt 0:09:52]} 43. Qc2 {[%emt 0:02:00]} Qxc2+ {[%emt 0:03:26]} 44. Rxc2 {[%emt 0:00:00]} Bb6 {[%emt 0:00:09]} 45. Bc5 {[%emt 0:00:34]} Rb8 {[%emt 0:00:21]} 46. Kg3 {[%emt 0:01:12]} Kg7 {[%emt 0:01:02]} 47. Ra1 {[%emt 0:00:40]} Rb7 {[%emt 0:01:41]} 48. Ra6 {[%emt 0:00:01]} Kf7 {[%emt 0:00:22]} 49. Bxb6 {[%emt 0:01:15]} Rexb6 {[%emt 0:00:04]} 50. Rxb6 {[%emt 0:00:10]} Rxb6 {[%emt 0:00:02]} 51. Rc5 {[%emt 0:00:32]} Ke6 {[%emt 0:00:07]} 52. Kf3 {[%emt 0:00:27]} a5 {[%emt 0:00:14]} 53. Ke3 {[%emt 0:00:15]} a4 {[%emt 0:00:20]} 54. Kd3 {[%emt 0:00:07]} a3 {[%emt 0:00:17]} 55. Kc3 {[%emt 0:00:16]} Kf5 {[%emt 0:00:13]} 56. Kb3 {[%emt 0:00:21]} Kxf4 {[%emt 0:00:17]} 57. Kxa3 {[%emt 0:00:42]} Ke4 {[%emt 0:00:42]} 58. Kb4 {[%emt 0:00:01]} Kxd4 {[%emt 0:00:07]} 59. Rc6 {[%emt 0:00:05]} Rb8 {[%emt 0:01:38]} 60. e6 {[%emt 0:00:05]} g5 {[%emt 0:02:00]} 61. e7 {[%emt 0:00:40]} Re8 {[%emt 0:00:16]} 62. Re6 {[%emt 0:00:09]} g4 {[%emt 0:00:39]} 63. hxg4 {[%emt 0:00:01]} hxg4 {[%emt 0:00:04]} 64. b6 {[%emt 0:00:04]} g3 {[%emt 0:00:04]} 65. b7 {[%emt 0:00:18]} g2 {[%emt 0:00:03]} 66. Rg6 {[%emt 0:00:04]} Rb8 {[%emt 0:01:18]} 67. Ka5 Kc5 {[%emt 0:02:00]} 68. Ka6 {[%emt 0:00:37]} Re8 {[%emt 0:00:28]} 69. Rxg2 {[%emt 0:00:07]} d4 {[%emt 0:00:04]} 70. Rc2+ {[%emt 0:00:09]} 1-0

[Event "1st Sergiy Shystarev Memorial 2020"]
[Site "Kyiv"]
[Date "2020.08.29"]
[Round "7.5"]
[White "Malovanyi, Yulian"]
[Black "Shishkin, Vadim"]
[Result "0-1"]
[ECO "B23"]
[WhiteElo "2311"]
[BlackElo "2469"]
[Annotator "ChessBase"]
[PlyCount "82"]
[EventDate "2020.08.25"]
[EventCountry "UKR"]
[SourceTitle "playchess.com"]
[Source "ChessBase"]
[SourceQuality "1"]
[TimeControl "5400+30"]

1. e4 {[%emt 0:11:08]} c5 {[%emt 0:00:00]} 2. Nc3 {[%emt 0:01:33]} Nc6 {[%emt 0:00:00]} 3. Nge2 {[%emt 0:00:10]} Nf6 {[%emt 0:00:02]} 4. g3 {[%emt 0:00:46]} d5 {[%emt 0:01:18]} 5. exd5 {[%emt 0:00:20]} Nd4 {[%emt 0:00:45]} 6. Bg2 {[%emt 0:08:11]} Bg4 {[%emt 0:00:36]} 7. h3 {[%emt 0:07:29]} Bf3 {[%emt 0:03:03]} 8. Kf1 {[%emt 0:07:20]} Bxg2+ 9. Kxg2 {[%emt 0:00:15]} Nxd5 {[%emt 0:05:09]} 10. Nxd4 {[%emt 0:04:23]} cxd4 {[%emt 0:01:19]} 11. Nxd5 {[%emt 0:00:15]} Qxd5+ {[%emt 0:00:03]} 12. Qf3 {[%emt 0:00:13]} Qxf3+ 13. Kxf3 {[%emt 0:00:08]} Rc8 {[%emt 0:01:17]} 14. c3 {[%emt 0:00:29]} g6 {[%emt 0:02:34]} 15. cxd4 {[%emt 0:22:35]} Bg7 {[%emt 0:00:22]} 16. d3 {[%emt 0:00:07]} Rc2 {[%emt 0:11:57]} 17. Be3 {[%emt 0:01:29]} Kd7 {[%emt 0:00:08]} 18. Rab1 {[%emt 0:04:28]} Rhc8 {[%emt 0:03:21]} 19. a4 {[%emt 0:03:24]} Kd6 {[%emt 0:05:14]} 20. Rhc1 {[%emt 0:02:57]} Kd5 {[%emt 0:05:19]} 21. b3 {[%emt 0:01:40]} Bf6 {[%emt 0:09:50]} 22. Rxc2 {[%emt 0:03:27]} Rxc2 {[%emt 0:01:49]} 23. g4 {[%emt 0:00:17]} g5 {[%emt 0:07:44]} 24. h4 {[%emt 0:05:40]} h6 {[%emt 0:05:09]} 25. hxg5 {[%emt 0:01:00]} hxg5 {[%emt 0:00:04]} 26. b4 {[%emt 0:07:31]} Ra2 {[%emt 0:04:41]} 27. a5 {[%emt 0:01:25]} Rc2 {[%emt 0:18:03]} 28. b5 {[%emt 0:03:22]} Bxd4 {[%emt 0:01:36]} 29. b6 {[%emt 0:00:46]} Bxe3 {[%emt 0:05:46]} 30. Kxe3 {[%emt 0:00:17]} a6 {[%emt 0:00:05]} 31. Rh1 {[%emt 0:01:28]} Rc5 {[%emt 0:02:33]} 32. Rh7 {[%emt 0:00:42]} Rxa5 {[%emt 0:00:59]} 33. Rxf7 {[%emt 0:00:14]} Ke6 {[%emt 0:00:08]} 34. Rh7 {[%emt 0:00:40]} Rb5 {[%emt 0:02:24]} 35. Rh6+ {[%emt 0:00:08]} Kf7 {[%emt 0:00:26]} 36. Kd4 {[%emt 0:01:03]} a5 {[%emt 0:00:46]} 37. Kc4 {[%emt 0:00:21]} Rb2 {[%emt 0:00:59]} 38. Rh8 {[%emt 0:00:13]} Rxb6 {[%emt 0:00:31]} 39. Ra8 {[%emt 0:00:06]} Rb4+ {[%emt 0:00:33]} 40. Kc5 {[%emt 0:00:57]} b6+ {[%emt 0:00:30]} 41. Kc6 {[%emt 0:00:15]} a4 {[%emt 0:00:24]} 0-1